bitfinex-derivatives/quotes_SOLF0:USTF0_20251024
["timestamp","ask_amount","ask_price","bid_price","bid_amount"]
[1761314874047,3.95322345,191.59,191.43,44.66]
[1761314874256,3.95322345,191.58,191.43,44.66]
[1761314874450,3.95322345,191.57,191.43,44.66]
[1761314874757,4.70166664,191.6,191.45,4.7002]
[1761314874959,3.95191426,191.59,191.45,4.7002]
[1761314875157,3.95191426,191.58,191.45,4.7002]
[1761314875456,4.70166664,191.6,191.45,4.7002]
[1761314875457,3.95191426,191.57,191.45,4.7002]
[1761314875657,4.70166664,191.6,191.45,4.7002]
[1761314875658,3.95191426,191.56,191.45,4.7002]
[1761314875955,3.95191426,191.59,191.45,4.7002]
[1761314876159,3.95191426,191.58,191.45,4.7002]
[1761314876452,3.95191426,191.57,191.45,4.7002]
[1761314876660,3.95191426,191.56,191.45,4.7002]
[1761314876859,3.95191426,191.59,191.45,4.7002]
[1761314877058,3.95191426,191.58,191.45,4.7002]
[1761314877361,3.95191426,191.57,191.45,4.7002]
[1761314877663,4.70166664,191.6,191.45,4.7002]
[1761314877863,3.95108335,191.59,191.45,4.7002]
[1761314878060,3.95108335,191.58,191.45,4.7002]
[1761314878254,3.95108335,191.57,191.45,4.7002]
[1761314878553,4.70166664,191.6,191.45,4.7002]
[1761314878761,3.95043635,191.59,191.45,4.7002]
[1761314878957,3.95043635,191.58,191.46,4.6997]
[1761314879263,4.70166664,191.6,191.46,4.6997]
[1761314879264,3.95043635,191.57,191.46,4.6997]
[1761314879463,3.95043635,191.59,191.46,4.6997]
[1761314879660,3.95043635,191.58,191.47,4.6995]
[1761314879862,4.70166664,191.6,191.47,4.6995]
[1761314880059,3.95184997,191.59,191.47,4.6995]
[1761314880256,3.95184997,191.58,191.48,4.6993]
[1761314880461,3.95184997,191.6,191.43,106.66]
[1761314881165,3.95184997,191.6,191.49,4.699]
[1761314881465,8.21723028,191.61,191.49,4.699]
[1761314881660,3.95190971,191.6,191.49,4.699]
[1761314882055,8.21723028,191.61,191.49,4.699]
[1761314882755,8.21723028,191.65,191.43,106.66]
[1761314882962,8.6672054,191.64,191.43,44.66]
[1761314883160,3.95211078,191.63,191.54,4.6978]
[1761314883356,3.95211078,191.66,191.5,44.66]
[1761314883560,3.95211078,191.65,191.5,44.66]
[1761314883853,4.71436018,191.68,191.5,44.66]
[1761314883854,3.95211078,191.64,191.5,44.66]
[1761314884059,3.95211078,191.67,191.5,44.66]
[1761314884255,3.95211078,191.66,191.54,4.6979]
[1761314884465,3.95211078,191.65,191.54,4.6979]
[1761314884665,3.95211078,191.67,191.54,4.6979]
[1761314884868,3.95211078,191.66,191.55,4.6976]
[1761314885064,3.95211078,191.65,191.55,4.6976]
[1761314885266,3.95211078,191.67,191.55,4.6976]
[1761314885460,8.21723028,191.64,191.5,49.3589]
[1761314885766,8.66647096,191.63,191.5,49.3589]
[1761314885965,3.95211078,191.62,191.5,49.3589]
[1761314886165,3.95211078,191.63,191.5,44.66]
[1761314886370,8.21723028,191.68,191.5,44.66]
[1761314886571,8.66525034,191.67,191.5,44.66]
[1761314886769,8.21723028,191.64,191.5,44.66]
[1761314886972,3.951287,191.63,191.5,44.66]
[1761314887163,8.21723028,191.64,191.5,44.66]
[1761314887164,3.951287,191.62,191.5,44.66]
[1761314887362,3.951287,191.61,191.5,44.66]
[1761314887562,3.951287,191.6,191.5,44.66]
[1761314887767,3.951287,191.62,191.5,44.66]
[1761314887965,3.951287,191.61,191.5,44.66]
[1761314888163,12.16851728,191.6,191.38,25.18275695]
[1761314888361,12.16851728,191.6,191.39,44.66]
[1761314888362,3.951287,191.59,191.39,44.66]
[1761314888574,3.951287,191.58,191.39,44.66]
[1761314888772,4.71227955,191.59,191.39,44.66]
[1761314888773,8.21723028,191.56,191.39,44.66]
[1761314889074,3.951287,191.55,191.39,44.66]
[1761314889277,3.951287,191.54,191.42,4.7008]
[1761314889469,3.951287,191.55,191.42,4.7008]
[1761314889667,3.951287,191.54,191.42,4.7008]
[1761314889869,3.951287,191.55,191.42,4.7008]
[1761314890069,3.951287,191.54,191.42,4.7008]
[1761314890268,8.21723028,191.56,191.42,4.7008]
[1761314890469,3.95239399,191.55,191.42,4.7008]
[1761314890666,3.95239399,191.54,191.42,4.7008]
[1761314890864,8.21723028,191.56,191.42,4.7008]
[1761314891072,3.95197573,191.55,191.42,4.7008]
[1761314891371,3.95197573,191.54,191.42,4.7008]
[1761314891574,3.95197573,191.53,191.42,4.7008]
[1761314891765,4.72376135,191.58,191.46,4.6998]
[1761314892069,3.95576706,191.57,191.46,4.6998]
[1761314892273,3.95576706,191.56,191.39,44.66]
[1761314892465,4.72007705,191.58,191.44,4.7004]
[1761314892466,3.95576706,191.55,191.44,4.7004]
[1761314892666,3.95576706,191.54,191.44,4.7004]
[1761314892872,12.93730733,191.58,191.44,4.7004]
[1761314893065,12.93730733,191.58,191.39,44.66]
[1761314893066,8.67725742,191.57,191.39,44.66]
[1761314893266,3.95718037,191.56,191.39,44.66]
[1761314893467,3.95718037,191.55,191.39,44.66]
[1761314893666,4.72007705,191.57,191.39,44.66]
[1761314893667,3.95718037,191.54,191.43,4.7005]
[1761314893866,4.72007705,191.57,191.39,44.66]
[1761314893867,3.95718037,191.53,191.39,44.66]
[1761314894069,4.72007705,191.56,191.39,44.66]
[1761314894271,3.95693461,191.55,191.42,4.7008]
[1761314894469,3.95693461,191.54,191.42,4.7008]
[1761314894671,3.95693461,191.53,191.39,44.66]
[1761314894873,3.95693461,191.52,191.34,62.0]
[1761314895070,8.21723028,191.5,191.34,106.66]
[1761314895380,3.95693461,191.49,191.34,49.3627]
[1761314895677,8.21723028,191.46,191.34,44.66]
[1761314895976,3.95693461,191.45,191.34,44.66]
[1761314896176,3.95693461,191.44,191.31,103.58040044]
[1761314896365,3.95693461,191.43,191.31,103.58040044]
[1761314896566,8.21723028,191.46,191.31,103.58040044]
[1761314896779,8.6598159,191.45,191.27,52.87723028]
[1761314896977,3.94865421,191.44,191.27,52.87723028]
[1761314897176,3.94865421,191.43,191.27,52.87723028]
[1761314897380,4.71116429,191.47,191.27,52.87723028]
[1761314897682,3.94508488,191.46,191.28,4.7042]
[1761314897873,3.94508488,191.45,191.27,44.66]
[1761314898069,8.21723028,191.42,191.15,150.32]
[1761314898270,8.21723028,191.39,191.16,52.87723028]
[1761314898476,8.6444001,191.38,191.17,62.0]
[1761314898670,3.94508488,191.37,191.17,62.0]
[1761314898870,3.94508488,191.36,191.17,77.56890118]
[1761314899078,3.98387555,191.35,191.17,78.47868132]
[1761314899285,3.98387555,191.38,191.17,78.47868132]
[1761314899477,3.98387555,191.37,191.17,78.47868132]
[1761314899680,3.98387555,191.38,191.17,78.47868132]
[1761314899877,4.69484841,191.41,191.28,4.7043]
[1761314900079,3.97889065,191.4,191.28,4.7043]
[1761314900278,8.21723028,191.38,191.17,78.47868132]
[1761314900585,12.94099163,191.44,191.2,8.21723028]
[1761314900889,13.39143727,191.43,191.2,8.21723028]
[1761314901180,8.66767592,191.42,191.22,8.21723028]
[1761314901382,8.69994928,191.41,191.18,42.94]
[1761314901585,8.66767592,191.4,191.19,8.21723028]
[1761314901787,4.7024,191.36,191.2,4.7063]
[1761314901978,4.7024,191.36,191.19,8.21723028]
[1761314902987,4.7024,191.36,191.22,4.7057]
[1761314903985,4.703,191.34,191.22,4.7057]
[1761314904485,8.64294447,191.36,191.18,42.94]
[1761314904692,8.21723028,191.32,190.91,12.85697902]
[1761314904882,4.72376135,191.29,191.06,8.21723028]
[1761314905079,4.72376135,191.29,191.1,8.21723028]
[1761314905080,4.7056,191.24,191.1,8.21723028]
[1761314905281,3.96912323,191.27,191.07,6.92]
[1761314905489,8.63481827,191.28,191.1,8.21723028]
[1761314905687,3.96912323,191.27,191.14,8.21723028]
[1761314905884,3.95080597,191.3,191.08,7.8]
[1761314906083,3.95080597,191.29,191.16,8.21723028]
[1761314906285,25.86,191.36,191.16,12.92443028]
[1761314906286,3.95080597,191.31,191.16,12.92443028]
[1761314906478,3.95080597,191.33,191.16,12.92443028]
[1761314906690,8.60904398,191.35,191.16,12.92443028]
[1761314906892,3.95080597,191.34,191.18,4.7067]
[1761314907079,3.95080597,191.34,191.19,8.21723028]
[1761314907283,3.95080597,191.36,191.19,8.21723028]
[1761314907586,3.95080597,191.38,191.2,62.0]
[1761314907898,8.60603863,191.4,191.2,62.0]
[1761314908084,3.95080597,191.39,191.23,8.21723028]
[1761314908279,4.7022,191.37,191.23,8.21723028]
[1761314908590,5.1415503,191.36,191.23,8.21723028]
[1761314908799,5.1415503,191.35,191.23,8.21723028]
[1761314909085,5.1415503,191.34,191.23,8.21723028]
[1761314909295,5.1415503,191.33,191.27,8.21723028]
[1761314909489,3.94151327,191.44,191.31,4.7035]
[1761314909792,5.14062134,191.43,191.31,4.7035]
[1761314909983,5.14062134,191.42,191.31,4.7035]
[1761314910185,5.14062134,191.41,191.31,4.7035]
[1761314910383,5.14062134,191.4,191.31,4.7035]
[1761314910589,5.14062134,191.39,191.31,4.7035]
[1761314910788,5.14062134,191.38,191.31,4.7035]
[1761314910994,5.14062134,191.37,191.31,4.7035]
[1761314911187,5.14062134,191.36,191.31,4.7035]
[1761314911388,5.14062134,191.35,191.31,4.7035]
[1761314911589,3.94244988,191.43,191.31,4.7035]
[1761314911790,5.14206801,191.42,191.31,66.7035]
[1761314911986,5.14206801,191.41,191.33,4.7029]
[1761314912186,5.14206801,191.4,191.33,4.7029]
[1761314912386,5.14206801,191.39,191.33,4.7029]
[1761314912586,4.72376135,191.49,191.31,62.0]
[1761314912587,5.14206801,191.38,191.32,4.7034]
[1761314912797,3.94511064,191.44,191.32,4.7034]
[1761314913090,5.1450582,191.43,191.32,4.7034]
[1761314913294,5.1450582,191.42,191.34,4.7028]
[1761314913491,5.1450582,191.41,191.31,70.21723028]
[1761314913695,5.1450582,191.4,191.32,44.98]
[1761314913891,4.6998,191.47,191.38,4.7019]
[1761314914098,5.14642617,191.46,191.38,4.7019]
[1761314914287,5.14642617,191.45,191.38,4.7019]
[1761314914595,42.14,191.57,191.35,8.21723028]
[1761314914596,5.14642617,191.44,191.35,8.21723028]
[1761314914796,14.52733282,191.58,191.35,8.21723028]
[1761314914797,3.94848371,191.54,191.35,8.21723028]
[1761314914985,5.14894285,191.53,191.39,8.21723028]
[1761314915187,5.14894285,191.52,191.43,8.21723028]
[1761314915385,5.14894285,191.51,191.43,53.29723028]
[1761314915593,4.6968,191.59,191.47,4.6995]
[1761314915899,5.1520178,191.58,191.43,53.29723028]
[1761314916089,5.1520178,191.57,191.43,53.29723028]
[1761314916296,5.1520178,191.56,191.47,8.21723028]
[1761314916596,3.95382037,191.64,191.47,8.21723028]
[1761314916897,9.10824591,191.63,191.47,8.21723028]
[1761314917089,8.21723028,191.68,191.47,8.21723028]
[1761314917090,9.10824591,191.62,191.47,48.69723028]
[1761314917286,5.15442554,191.61,191.51,4.6986]
[1761314917493,4.72376135,191.66,191.51,4.6986]
[1761314917494,5.15442554,191.6,191.51,4.6986]
[1761314917692,9.4931349,191.71,191.47,48.69723028]
[1761314917693,5.15442554,191.59,191.47,48.69723028]
[1761314917999,5.15442554,191.58,191.52,4.6983]
[1761314918201,5.15442554,191.57,191.52,4.6983]
[1761314918401,5.15442554,191.56,191.52,4.6983]
[1761314918587,3.95531273,191.63,191.52,4.6983]
[1761314918789,9.85419955,191.62,191.49,4.6992]
[1761314918989,17.71036518,191.72,191.48,62.0]
[1761314918990,9.11393221,191.61,191.48,62.0]
[1761314919192,5.15809955,191.6,191.48,62.0]
[1761314919391,5.15809955,191.59,191.48,66.6994]
[1761314919591,5.15809955,191.58,191.48,66.6994]
[1761314919897,5.15809955,191.57,191.44,4.7004]
[1761314920096,5.15809955,191.56,191.44,49.7404]
[1761314920399,5.15809955,191.55,191.44,49.7404]
[1761314920599,5.15809955,191.54,191.44,49.7404]
[1761314920801,5.15809955,191.53,191.44,49.7404]
[1761314920997,5.15809955,191.52,191.44,49.7404]
[1761314921200,5.15809955,191.51,191.44,49.7404]
[1761314921402,5.15809955,191.5,191.44,49.7404]
[1761314921700,3.9557657,191.56,191.41,8.21723028]
[1761314921897,9.11324934,191.55,191.37,45.04]
[1761314922097,5.15748364,191.54,191.39,8.21723028]
[1761314922302,5.15748364,191.53,191.39,8.21723028]
[1761314922500,5.15748364,191.52,191.39,8.21723028]
[1761314922708,5.15748364,191.51,191.39,8.21723028]
[1761314922895,5.15748364,191.5,191.4,62.0]
[1761314923201,5.15748364,191.49,191.37,45.04]
[1761314923502,5.15748364,191.48,191.37,45.04]
[1761314923702,5.15748364,191.47,191.37,45.04]
[1761314923895,5.15683438,191.46,191.37,45.04]
[1761314924091,3.95514875,191.54,191.37,45.04]
[1761314924293,5.15792625,191.53,191.41,4.7011]
[1761314924595,5.15792625,191.52,191.41,4.7011]
[1761314924899,5.15792625,191.51,191.41,4.7011]
[1761314925099,5.15792625,191.5,191.41,4.7011]
[1761314925296,5.15792625,191.49,191.37,45.04]
[1761314925502,5.15792625,191.48,191.39,8.21723028]
[1761314925700,3.95638322,191.56,191.39,8.21723028]
[1761314925893,5.15955954,191.55,191.39,8.21723028]
[1761314926099,5.15955954,191.54,191.39,8.21723028]
[1761314926299,5.15955954,191.53,191.4,62.0]
[1761314926498,5.15955954,191.52,191.43,4.7006]
[1761314926701,5.15955954,191.51,191.43,4.7006]
[1761314926906,5.15955954,191.5,191.43,4.7006]
[1761314927108,5.15955954,191.49,191.43,4.7006]
[1761314927405,3.95830493,191.58,191.43,4.7006]
[1761314927603,4.72376135,191.54,191.33,150.44]
[1761314927802,4.72376135,191.52,191.4,4.7012]
[1761314928110,9.12140426,191.51,191.37,8.21723028]
[1761314928409,9.12140426,191.5,191.37,8.21723028]
[1761314928712,9.12140426,191.49,191.41,4.7009]
[1761314928999,9.12140426,191.48,191.41,4.7009]
[1761314929201,5.16309933,191.47,191.34,44.98]
[1761314929401,9.4115143,191.46,191.29,8.21723028]
[1761314929594,4.72376135,191.44,191.29,53.15723028]
[1761314929802,9.4115143,191.43,191.29,53.15723028]
[1761314930008,9.4115143,191.42,191.29,53.15723028]
[1761314930301,5.16930756,191.41,191.29,53.15723028]
[1761314930504,4.72376135,191.47,191.32,4.7032]
[1761314930805,14.14271836,191.46,191.33,62.0]
[1761314931007,9.41895701,191.45,191.33,62.0]
[1761314931215,9.41895701,191.44,191.33,62.0]
[1761314931408,9.41895701,191.43,191.33,62.0]
[1761314931705,4.72376135,191.46,191.34,4.7027]
[1761314931706,9.41895701,191.42,191.34,4.7027]
[1761314931905,5.16922112,191.41,191.34,4.7027]
[1761314932103,4.72376135,191.46,191.34,4.7027]
[1761314932306,9.42474478,191.45,191.34,4.7027]
[1761314932507,9.42474478,191.44,191.3,8.21723028]
[1761314932807,9.42474478,191.44,191.29,44.94]
[1761314932808,9.42474478,191.43,191.29,49.94414712]
[1761314933003,9.42474478,191.42,191.29,49.94414712]
[1761314933208,9.42474478,191.41,191.29,49.94414712]
[1761314933410,9.42474478,191.4,191.29,49.94414712]
[1761314933609,9.42474478,191.39,191.29,49.94414712]
[1761314933806,9.42474478,191.38,191.29,49.94414712]
[1761314934008,9.42474478,191.37,191.29,49.94414712]
[1761314934202,4.72376135,191.42,191.29,49.94414712]
[1761314934402,9.42501557,191.41,191.31,4.7034]
[1761314934608,9.42501557,191.4,191.31,4.7034]
[1761314934904,9.42501557,191.39,191.32,4.7034]
[1761314935112,4.72376135,191.44,191.29,49.94414712]
[1761314935312,9.4270303,191.43,191.29,49.94414712]
[1761314935608,4.72376135,191.44,191.36,4.7024]
[1761314935609,9.4270303,191.42,191.36,4.7024]
[1761314935811,9.4270303,191.41,191.36,4.7024]
[1761314936113,9.4270303,191.4,191.36,4.7024]
[1761314936307,4.72376135,191.45,191.36,4.7024]
[1761314936510,9.42879345,191.44,191.36,4.7024]
[1761314936706,9.42879345,191.43,191.33,5.00414712]
[1761314936909,9.42879345,191.42,191.37,4.7019]
[1761314937115,4.72376135,191.47,191.33,5.00414712]
[1761314937307,9.4320507,191.46,191.33,5.00414712]
[1761314937506,4.72376135,191.47,191.33,5.00414712]
[1761314937507,9.4320507,191.45,191.33,5.00414712]
[1761314937709,9.4320507,191.44,191.33,5.00414712]
[1761314938017,4.72376135,191.49,191.37,5.00414712]
[1761314938211,9.43302917,191.48,191.41,4.701]
[1761314938516,9.43302917,191.47,191.38,62.0]
[1761314938712,4.25620697,191.46,191.41,4.701]
[1761314938903,5.00426006,191.49,191.41,4.701]
[1761314939109,9.26114327,191.48,191.41,4.701]
[1761314939307,4.72376135,191.5,191.41,4.701]
[1761314939308,4.25688321,191.47,191.41,4.701]
[1761314939510,4.25688321,191.46,191.41,4.701]
[1761314939714,5.00401667,191.49,191.42,4.7008]
[1761314939916,4.25685962,191.48,191.39,5.00414712]
[1761314940222,4.25685962,191.47,191.39,5.00414712]
[1761314940409,5.00212755,191.5,191.39,5.00414712]
[1761314940711,9.25664425,191.49,191.39,5.00414712]
[1761314940909,4.2545167,191.48,191.39,5.00414712]
[1761314941109,4.2545167,191.47,191.39,5.00414712]
[1761314941311,5.0016098,191.5,191.39,5.00414712]
[1761314941511,9.25624051,191.49,191.39,5.00414712]
[1761314941714,4.25463071,191.48,191.41,4.701]
[1761314941917,4.25463071,191.47,191.41,4.701]
[1761314942116,5.0023532,191.5,191.39,5.00414712]
[1761314942310,9.25793249,191.49,191.42,4.7007]
[1761314942510,4.25557929,191.48,191.42,4.7007]
[1761314942711,4.25557929,191.47,191.42,4.7007]
[1761314943012,4.25557929,191.46,191.42,4.7007]
[1761314943214,5.00341563,191.49,191.42,4.7007]
[1761314943417,4.25632982,191.48,191.42,4.7007]
[1761314943611,4.25632982,191.47,191.42,4.7007]
[1761314943818,5.00360748,191.5,191.43,4.7005]
[1761314944014,4.25651493,191.49,191.39,49.86414712]
[1761314944207,4.25651493,191.48,191.39,49.86414712]
[1761314944411,5.00426228,191.5,191.39,49.86414712]
[1761314944612,4.25738868,191.49,191.39,49.86414712]
[1761314944815,4.25738868,191.48,191.39,49.86414712]
[1761314945118,4.25700135,191.47,191.36,5.00414712]
[1761314945418,4.72376135,191.52,191.36,5.00414712]
[1761314945618,13.98536202,191.51,191.23,15.719284]
[1761314945812,4.72376135,191.47,191.31,5.00414712]
[1761314946016,4.25715472,191.46,191.37,4.702]
[1761314946210,11.31424966,191.52,191.37,4.702]
[1761314946211,4.72376135,191.51,191.37,39.382]
[1761314946421,9.26280143,191.5,191.37,34.68]
[1761314946612,9.26280143,191.49,191.37,34.68]
[1761314946812,4.2575953,191.48,191.4,4.7013]
[1761314947118,4.2575953,191.47,191.4,4.7013]
[1761314947320,4.72376135,191.51,191.4,4.7013]
[1761314947520,9.26524211,191.5,191.4,4.7013]
[1761314947707,4.25871821,191.49,191.4,4.7013]
[1761314947906,4.25871821,191.48,191.38,62.0]
[1761314948108,4.72376135,191.54,191.39,5.00414712]
[1761314948313,9.26745527,191.53,191.39,5.00414712]
[1761314948516,9.26745527,191.52,191.39,5.00414712]
[1761314948821,4.25952827,191.51,191.39,5.00414712]
[1761314949024,4.25952827,191.5,191.39,5.00414712]
[1761314949222,4.72376135,191.55,191.39,5.00414712]
[1761314949522,9.27151096,191.54,191.39,5.00414712]
[1761314949819,4.26167947,191.53,191.39,5.00414712]
[1761314950020,4.26167947,191.52,191.39,5.00414712]
[1761314950322,4.26829403,191.51,191.39,5.00414712]
[1761314950512,4.72376135,191.56,191.44,4.7005]
[1761314950716,14.00952356,191.55,191.44,4.7005]
[1761314950911,14.00952356,191.54,191.39,5.00414712]
[1761314951116,9.29150725,191.53,191.43,5.00414712]
[1761314951321,4.26853839,191.52,191.43,5.00414712]
[1761314951522,4.26853839,191.51,191.43,67.00414712]
[1761314951720,4.26853839,191.5,191.43,67.00414712]
[1761314951908,5.02339298,191.54,191.43,67.00414712]
[1761314952114,9.29810149,191.53,191.43,62.0]
[1761314952316,9.29810149,191.52,191.43,62.0]
[1761314952622,9.30381092,191.51,191.43,62.0]
[1761314952823,4.27470851,191.5,191.41,5.00414712]
[1761314953024,4.27470851,191.49,191.45,4.7001]
[1761314953223,4.28158641,191.48,191.45,4.7001]
[1761314953426,4.72376135,191.53,191.42,44.72]
[1761314953723,9.31487334,191.52,191.42,44.72]
[1761314953925,9.31487334,191.51,191.46,4.6998]
[1761314954231,9.3180227,191.5,191.42,44.72]
[1761314954415,9.3180227,191.49,191.42,44.72]
[1761314954615,4.2818307,191.48,191.42,44.72]
[1761314954812,4.2818307,191.47,191.44,4.7003]
[1761314955023,4.2818307,191.46,191.44,4.7003]
[1761314955221,4.72376135,191.51,191.42,44.72]
[1761314955420,9.32509766,191.5,191.42,44.72]
[1761314955624,4.28643689,191.49,191.42,44.72]
[1761314955819,4.28643689,191.48,191.42,44.72]
[1761314956020,4.28643689,191.47,191.42,44.72]
[1761314956221,4.28876391,191.46,191.44,4.7004]
[1761314956421,4.72376135,191.5,191.44,4.7004]
[1761314956617,9.33035738,191.49,191.44,4.7004]
[1761314956821,9.33035738,191.48,191.42,49.4209]
[1761314957020,4.28908737,191.47,191.42,49.4209]
[1761314957324,4.28908737,191.46,191.42,49.4209]
[1761314957525,4.72376135,191.49,191.42,49.4209]
[1761314957526,4.72376135,191.51,191.42,49.4209]
[1761314957825,9.2374799,191.5,191.42,44.72]
[1761314958021,9.2374799,191.49,191.42,44.72]
[1761314958229,9.2374799,191.48,191.42,44.72]
[1761314958419,9.2374799,191.47,191.42,44.72]
[1761314958618,4.19381851,191.46,191.42,44.72]
[1761314958915,4.72376135,191.5,191.42,44.72]
[1761314959115,9.24004535,191.49,191.43,4.7006]
[1761314959332,9.24004535,191.48,191.42,44.72]
[1761314959526,4.19507606,191.47,191.4,44.7]
[1761314959723,4.72376135,191.52,191.44,4.7004]
[1761314960028,13.9653409,191.51,191.44,4.7004]
[1761314960222,9.24157955,191.5,191.44,4.7004]
[1761314960528,9.24157955,191.49,191.44,4.7004]
[1761314960723,4.19570805,191.48,191.44,4.7004]
[1761314960922,4.19570805,191.47,191.44,4.7004]
[1761314961128,4.72376135,191.52,191.44,4.7004]
[1761314961327,9.24323238,191.51,191.39,5.00414712]
[1761314961538,9.24323238,191.5,191.42,44.7]
[1761314961720,4.19644525,191.49,191.42,44.7]
[1761314961921,4.19644525,191.48,191.42,44.7]
[1761314962230,4.72376135,191.53,191.42,44.7]
[1761314962427,9.24642288,191.52,191.42,44.7]
[1761314962729,9.24642288,191.51,191.42,44.7]
[1761314962930,9.24642288,191.5,191.42,44.7]
[1761314963125,4.19794441,191.49,191.46,4.6998]
[1761314963326,6.31010254,191.55,191.42,44.7]
[1761314963327,4.72376135,191.55,191.47,5.00414712]
[1761314963529,4.20033538,191.54,191.47,5.00414712]
[1761314963727,9.25189498,191.53,191.48,4.6994]
[1761314963933,4.72376135,191.56,191.48,4.6994]
[1761314963934,4.20033538,191.52,191.48,4.6994]
[1761314964124,4.20033538,191.51,191.48,4.6994]
[1761314964325,4.72376135,191.56,191.48,4.6994]
[1761314964526,9.18566721,191.55,191.47,5.00414712]
[1761314964726,9.18566721,191.54,191.46,44.7]
[1761314964925,9.18566721,191.53,191.46,44.7]
[1761314965230,4.18561022,191.52,191.46,44.7]
[1761314965528,4.72376135,191.56,191.46,44.7]
[1761314965731,9.18568437,191.55,191.46,44.7]
[1761314965926,9.18568437,191.54,191.48,4.6994]
[1761314966122,4.18560044,191.53,191.48,4.6994]
[1761314966326,4.99954733,191.56,191.46,49.70414712]
[1761314966526,4.18516091,191.55,191.46,49.70414712]
[1761314966723,4.18516091,191.54,191.46,49.70414712]
[1761314967022,4.72376135,191.62,191.46,49.70414712]
[1761314967227,9.18666796,191.61,191.53,4.6982]
[1761314967427,9.18666796,191.6,191.53,4.6982]
[1761314967630,4.18619979,191.59,191.53,4.6982]
[1761314967829,4.18619979,191.58,191.53,4.6982]
[1761314968036,4.72376135,191.63,191.53,4.6982]
[1761314968037,4.99817261,191.61,191.53,4.6982]
[1761314968229,4.18439714,191.6,191.53,4.6982]
[1761314968428,4.18439714,191.59,191.53,4.6982]
[1761314968637,4.72376135,191.64,191.53,4.6982]
[1761314968838,9.06929041,191.63,191.53,4.6982]
[1761314969036,4.18250955,191.62,191.53,4.6982]
[1761314969236,4.18250955,191.61,191.53,4.6982]
[1761314969436,4.18250955,191.6,191.53,4.6982]
[1761314969626,4.88611557,191.63,191.53,4.6982]
[1761314969833,4.18021895,191.62,191.53,4.6982]
[1761314970037,4.18021895,191.61,191.53,4.6982]
[1761314970238,4.18021895,191.6,191.53,4.6982]
[1761314970438,4.88611557,191.63,191.53,4.6982]
[1761314970636,4.17867187,191.62,191.53,4.6982]
[1761314970938,4.17867227,191.61,191.5,62.0]
[1761314971144,4.17867227,191.6,191.5,62.0]
[1761314971340,4.74803412,191.65,191.5,62.0]
[1761314971539,4.17725265,191.64,191.5,62.0]
[1761314971837,4.17725265,191.63,191.5,62.0]
[1761314972043,4.17725265,191.62,191.5,62.0]
[1761314972244,4.17725265,191.61,191.5,62.0]
[1761314972539,4.17725265,191.61,191.49,5.00414712]
[1761314972540,4.17599997,191.6,191.49,5.00414712]
[1761314972729,4.17599997,191.6,191.42,14.40594712]
[1761314972730,4.17599997,191.59,191.42,9.4018]
[1761314972934,4.8806382,191.63,191.44,5.00414712]
[1761314972935,4.17599997,191.58,191.44,5.00414712]
[1761314973137,4.74803412,191.62,191.44,5.00414712]
[1761314973448,4.17525477,191.61,191.44,5.00414712]
[1761314973642,4.17525477,191.6,191.44,5.00414712]
[1761314973843,4.17525477,191.59,191.48,4.6994]
[1761314974036,4.17525477,191.58,191.48,4.6994]
[1761314974234,4.17525477,191.57,191.48,4.6994]
[1761314974441,4.74803412,191.62,191.49,4.6991]
[1761314974636,4.17450789,191.61,191.46,5.00414712]
[1761314974840,4.17450789,191.6,191.46,5.00414712]
[1761314975042,4.17450789,191.59,191.46,5.00414712]
[1761314975248,4.17450789,191.58,191.45,5.00414712]
[1761314975448,4.87784302,191.61,191.45,5.00414712]
[1761314975449,4.17450789,191.57,191.45,67.00414712]
[1761314975742,4.87784302,191.61,191.45,5.00414712]
[1761314975946,4.74803412,191.62,191.49,4.6991]
[1761314975947,4.17582106,191.6,191.49,4.6991]
[1761314976250,4.17582106,191.59,191.49,4.6991]
[1761314976448,4.17582106,191.58,191.49,4.6991]
[1761314976647,4.17582106,191.57,191.49,4.6991]
[1761314976851,4.87784302,191.6,191.49,4.6991]
[1761314977049,4.17658359,191.59,191.49,4.6991]
[1761314977251,4.17658359,191.58,191.49,4.6991]
[1761314977551,5.00414712,191.61,191.49,4.6991]
[1761314977846,4.1773267,191.6,191.45,5.00414712]
[1761314978052,4.1773267,191.59,191.45,5.00414712]
[1761314978254,4.17926281,191.58,191.45,5.00414712]
[1761314978452,4.88112962,191.62,191.49,5.00414712]